bitfinex/quotes_ETHUSD_20250426
["timestamp","ask_amount","ask_price","bid_price","bid_amount"]
[1745694756591,4.60338427,1804.8,1804.7,0.40955118]
[1745694756891,4.60338427,1804.8,1804.6,6.34699792]
[1745694757091,4.60338427,1804.8,1804.7,0.40814076]
[1745694757289,4.60338427,1804.8,1804.7,5.54108716]
[1745694757591,4.60338427,1804.8,1804.7,5.94928433]
[1745694764603,4.615,1804.9,1804.7,5.94928433]
[1745694764896,4.615,1804.9,1804.7,0.40819717]
[1745694765102,4.615,1804.9,1804.6,6.34700506]
[1745694765399,4.615,1804.9,1804.7,0.40819717]
[1745694765704,4.615,1804.9,1804.6,7.53585936]
[1745694765995,4.615,1804.9,1804.7,0.40808435]
[1745694766498,4.615,1804.9,1804.8,0.40825359]
[1745694766797,4.615,1804.9,1804.6,7.53585936]
[1745694767001,4.615,1804.9,1804.8,0.40825359]
[1745694767197,0.8098,1804.8,1804.6,6.73005936]
[1745694767404,0.8098,1804.8,1804.7,0.67300594]
[1745694767701,0.8098,1804.8,1804.6,6.73005936]
[1745694768203,0.8098,1804.8,1804.6,1.1888543]
[1745694768366,4.615,1804.9,1804.6,5.54128755]
[1745694771010,4.615,1804.9,1804.5,5.54145704]
[1745694771414,4.615,1804.9,1804.5,11.08294846]
[1745694771721,4.9252548,1804.9,1804.5,11.08294846]
[1745694772518,4.615,1804.9,1804.5,11.08294846]
[1745694772701,4.615,1804.9,1804.6,1.10829485]
[1745694773223,4.615,1804.9,1804.5,5.54145704]
[1745694773523,0.7676,1804.8,1804.5,5.54145704]
[1745694776525,0.7676,1804.8,1804.5,11.08291219]
[1745694776692,0.7676,1804.8,1804.5,5.54145515]
[1745694777633,0.7676,1804.8,1804.6,5.54134673]
[1745694778317,0.7676,1804.8,1804.6,6.64962692]
[1745694778511,5.4408,1804.9,1804.6,6.64962692]
[1745694778734,5.4408,1804.9,1804.6,6.64943347]
[1745694778927,5.4408,1804.9,1804.7,5.54091472]
[1745694778928,4.615,1804.9,1804.7,5.54091472]
[1745694779295,4.615,1804.9,1804.8,0.40859208]
[1745694783923,4.615,1804.9,1804.8,0.40881775]
[1745694784121,4.615,1804.9,1804.6,6.64947986]
[1745694784308,4.615,1804.9,1804.7,0.40881775]
[1745694784507,4.615,1804.9,1804.6,6.64947986]
[1745694784710,4.615,1804.9,1804.7,0.40881775]
[1745694784922,4.615,1804.9,1804.6,6.64947986]
[1745694785124,4.615,1804.9,1804.7,0.40881775]
[1745694785324,4.615,1804.9,1804.6,6.64947986]
[1745694785533,4.615,1804.9,1804.7,0.40881775]
[1745694785734,4.615,1804.9,1804.6,6.64947986]
[1745694785936,4.615,1804.9,1804.7,0.40881775]
[1745694786137,4.615,1804.9,1804.6,6.64947986]
[1745694786303,4.615,1804.9,1804.7,1.07376574]
[1745694786505,4.615,1804.9,1804.7,6.61471179]
[1745694793644,4.615,1804.9,1804.7,5.9497638]
[1745694794639,4.615,1804.9,1804.7,0.40881775]
[1745694795136,4.615,1804.9,1804.8,0.4086485]
[1745694795307,4.615,1804.9,1804.6,6.99266773]
[1745694795520,4.615,1804.9,1804.6,12.53382458]
[1745694795846,4.615,1804.9,1804.7,1.66203096]
[1745694796864,4.615,1804.9,1804.7,7.20308543]
[1745694800756,4.615,1804.9,1804.7,7.2029497]
[1745694806426,6.29948014,1804.8,1804.7,0.4086485]
[1745694806831,6.30045016,1804.5,1804.2,0.28959414]
[1745694807131,4.89237182,1804.4,1804.3,0.36615124]
[1745694807331,11.19308024,1804.4,1804.3,0.36615124]
[1745694807533,5.54284185,1804.2,1803.9,5.0]
[1745694807730,0.7587,1804.1,1804.0,0.36767336]
[1745694807961,1.06907182,1804.1,1804.0,0.36767336]
[1745694808181,6.61200181,1804.1,1804.0,0.36767336]
[1745694808771,6.61200181,1804.1,1803.9,0.28963174]
[1745694808947,4.89337182,1804.0,1803.9,0.28963174]
[1745694809460,4.89337182,1804.0,1803.9,0.6592225]
[1745694809642,4.89337182,1804.0,1803.9,0.28963174]
[1745694809967,4.583,1804.0,1803.9,0.28963174]
[1745694810677,4.583,1804.0,1803.9,0.66023789]
[1745694810880,4.583,1804.0,1803.9,0.28963174]
[1745694811041,4.583,1804.0,1803.9,0.66023789]
[1745694811249,4.583,1804.0,1803.9,0.28963174]
[1745694811449,4.583,1804.0,1803.9,0.66023789]
[1745694811663,4.583,1804.0,1803.9,0.28963174]
[1745694811862,4.583,1804.0,1803.9,0.66023789]
[1745694812060,4.583,1804.0,1803.9,0.28963174]
[1745694812374,4.583,1804.0,1803.9,0.66023789]
[1745694824468,4.583,1804.0,1803.9,6.82418726]
[1745694829900,4.583,1804.0,1803.9,7.58705783]
[1745694830062,6.8849,1804.5,1804.1,5.54277015]
[1745694830263,4.584,1804.4,1804.1,5.54277015]
[1745694830496,4.584,1804.4,1804.2,0.37449694]
[1745694832561,4.584,1804.4,1804.1,5.54277015]
[1745694832762,4.584,1804.4,1804.2,5.54259933]
[1745694833105,4.584,1804.4,1804.2,5.91641935]
[1745694833893,4.584,1804.4,1804.2,11.45885624]
[1745694834197,4.584,1804.4,1804.3,5.54231557]
[1745694834789,4.584,1804.4,1804.3,5.91613559]
[1745694836663,4.584,1804.4,1804.3,0.37382002]
[1745694841803,4.584,1804.4,1804.3,6.50776267]
[1745694843103,4.584,1804.4,1804.3,0.9654471]
[1745694843277,4.584,1804.4,1804.3,0.37382002]
[1745694844781,4.584,1804.4,1804.3,5.91613559]
[1745694845180,4.584,1804.4,1804.3,0.37382002]
[1745694845702,4.584,1804.4,1804.3,5.91613559]
[1745694846008,4.584,1804.4,1804.3,7.82669393]
[1745694848778,4.584,1804.4,1804.3,9.27899297]
[1745694849689,4.583,1804.7,1804.4,5.54195925]
[1745694850081,4.583,1804.7,1804.5,0.37133834]
[1745694852291,4.583,1804.7,1804.5,5.91303638]
[1745694853416,4.583,1804.7,1804.5,7.05853594]
[1745694857518,4.583,1804.7,1804.5,12.59999744]
[1745694857816,4.583,1804.7,1804.6,5.54139421]
[1745694858113,4.583,1804.7,1804.6,5.91092806]
[1745694858313,4.583,1804.7,1804.6,7.3632271]
[1745694858515,4.583,1804.7,1804.6,7.39429688]
[1745694861988,4.583,1804.7,1804.6,8.84659592]
[1745694863300,4.583,1804.7,1804.6,7.39429688]
[1745694869095,4.583,1804.7,1804.6,8.84659592]
[1745694870131,4.583,1804.7,1804.6,9.66139592]
[1745694871299,0.30983188,1804.9,1804.6,15.20279013]
[1745694871533,0.30983188,1804.9,1804.7,5.54108232]
[1745694872031,4.582,1805.0,1804.8,0.36851901]
[1745694873376,0.30982185,1804.9,1804.8,0.36851901]
[1745694875547,0.30982185,1804.9,1804.6,9.29163508]
[1745694875719,0.30982185,1804.9,1804.8,0.36851901]
[1745694885275,0.30982185,1804.9,1804.8,5.90929915]
[1745694885453,0.30982185,1804.9,1804.8,8.2417017]
[1745694886039,0.30982185,1805.2,1805.1,5.53985928]
[1745694886360,0.30982185,1805.2,1805.1,5.90713792]
[1745694886858,4.582,1805.3,1805.1,7.0518681]
[1745694887254,4.582,1805.3,1805.2,6.99185144]
[1745694887754,4.582,1805.3,1805.2,5.90536558]
[1745694887960,4.582,1805.3,1805.2,0.36581318]
[1745694888348,4.582,1805.3,1805.1,6.68437603]
[1745694888660,4.582,1805.3,1805.2,1.17948069]
[1745694888861,5.4134,1805.3,1805.2,0.36581318]
[1745694889166,5.4134,1805.3,1805.1,1.14473018]
[1745694889460,5.4134,1805.3,1805.2,0.36513695]
[1745694889660,5.4134,1805.3,1805.1,5.5398202]
[1745694889836,5.4134,1805.3,1805.2,0.3654187]
[1745694890037,5.4134,1805.3,1805.1,5.5398202]
[1745694890348,5.4134,1805.3,1805.2,0.3654187]
[1745694890550,5.4134,1805.3,1805.2,0.95594259]
[1745694893660,4.582,1805.3,1805.2,0.95594259]
[1745694896758,4.582,1805.3,1805.2,6.49549499]
[1745694897457,4.582,1805.3,1805.2,0.95594259]
[1745694898468,4.582,1805.3,1805.2,6.49549499]
[1745694900254,4.582,1805.3,1805.2,0.95594259]
[1745694901965,4.582,1805.3,1805.2,6.49549499]
[1745694913368,4.582,1805.3,1805.2,5.9049711]
[1745694914772,0.30988513,1805.5,1805.2,5.9049711]
[1745694914985,4.88988513,1805.5,1805.2,5.9049711]
[1745694915172,4.58,1805.5,1805.2,5.9049711]
[1745694915864,0.31049453,1805.4,1805.2,5.9049711]
[1745694916387,4.58,1805.5,1805.2,5.9049711]
[1745694918591,0.31055663,1805.4,1805.2,5.9049711]
[1745694919091,4.58,1805.5,1805.2,5.9049711]
[1745694919697,4.58,1805.5,1805.2,0.3654187]
[1745694919852,4.58,1805.5,1805.4,5.53893873]
[1745694920053,0.31063134,1805.5,1805.4,7.35184368]
[1745694920576,0.31063134,1805.5,1805.4,8.14404368]
[1745694920753,4.58,1805.6,1805.5,5.53863195]
[1745694920952,0.31063134,1805.8,1805.6,5.53813141]
[1745694921352,0.31063134,1805.8,1805.7,0.36085419]
[1745694921659,21.313,1805.9,1805.7,0.36085419]
[1745694921872,21.313,1805.9,1805.5,5.53850705]
[1745694922180,21.313,1805.9,1805.6,0.36085419]
[1745694923092,21.313,1805.9,1805.6,5.89915259]
[1745694925156,6.29102617,1805.8,1805.6,0.36085419]
[1745694925478,6.29104732,1805.8,1805.4,5.53877314]
[1745694925684,6.29104732,1805.8,1805.7,0.33036976]
[1745694925880,0.7532,1805.8,1805.4,5.53877314]
[1745694926078,0.7532,1805.8,1805.7,0.33036976]
[1745694926298,0.7532,1805.8,1805.5,5.53862793]
[1745694926768,0.7532,1805.8,1805.6,0.33036976]
[1745694927095,21.313,1805.9,1805.7,5.53786701]
[1745694927396,21.312,1805.9,1805.7,6.67851103]
[1745694927595,21.312,1805.9,1805.8,0.33036976]
[1745694928099,21.312,1805.9,1805.8,5.86808157]
[1745694928392,4.679,1805.9,1805.8,5.86808157]
[1745694929093,4.679,1805.9,1805.8,0.33036976]
[1745694930293,4.679,1805.9,1805.8,1.03125053]
[1745694931385,4.679,1805.9,1805.8,6.56896234]
[1745694931786,4.679,1805.9,1805.8,8.84256084]
[1745694932102,0.1,1805.9,1805.8,8.84256084]
[1745694934217,0.1,1805.9,1805.8,7.39186234]
[1745694934389,0.1,1805.9,1805.8,6.56896234]
[1745694940812,0.1,1805.9,1805.8,7.38537558]
[1745694941012,0.1,1805.9,1805.8,8.14290681]
[1745694954542,0.1,1805.9,1805.8,8.19827144]
[1745694955339,0.1,1805.9,1805.8,8.14290681]
[1745694955646,0.1,1805.9,1805.8,8.83111114]
[1745694974276,3.0,1805.5,1804.2,0.7958]
[1745694974472,0.811,1804.9,1804.2,2.2450488]
[1745694974662,5.388,1804.9,1804.4,5.541813]
[1745694974860,10.92848342,1804.9,1804.4,1.10839261]
[1745694975063,0.51606319,1804.8,1804.4,6.65039613]
[1745694975263,6.05696888,1804.8,1804.4,1.10839261]
[1745694975472,0.811,1804.6,1804.2,5.54235462]
[1745694975787,6.35240257,1804.6,1804.2,5.54235462]
[1745694975943,6.35240257,1804.6,1804.1,8.54277498]
[1745694976143,0.811,1804.6,1804.1,5.54265885]
[1745694976369,0.811,1804.6,1804.2,5.542586]
[1745694977780,0.811,1804.6,1804.3,0.7624541]
[1745694977980,0.811,1804.9,1804.8,5.54078014]
[1745694978143,0.811,1805.1,1804.9,5.54029396]
[1745694978472,4.578,1805.2,1805.1,5.53985928]
[1745694978846,4.578,1805.2,1805.0,5.54000397]
[1745694980176,4.578,1805.2,1804.9,5.54030165]
[1745694980376,0.811,1805.3,1804.9,5.54030165]
[1745694980577,1.44599532,1805.3,1804.9,5.54030165]
[1745694980782,1.44599532,1805.3,1804.9,5.54024671]
[1745694980977,1.44599532,1805.3,1805.0,5.54012237]
[1745694981155,1.44599532,1805.3,1804.9,5.54022384]
[1745694981685,1.44599532,1805.3,1804.9,11.08047593]
[1745694982178,1.44599532,1805.3,1805.0,5.54015504]
[1745694983283,1.44599532,1805.3,1804.9,5.54033114]
[1745694983491,1.44599532,1805.3,1804.9,11.08055613]
[1745694983992,1.44599532,1805.3,1804.9,5.54022499]
[1745694984191,1.44599532,1805.3,1804.9,11.08043915]
[1745694984388,1.44599532,1805.3,1804.9,5.54016849]
[1745694985456,1.44599532,1805.3,1804.8,5.54063275]
[1745694985686,1.44599532,1805.3,1805.0,5.54014216]
[1745694985687,0.811,1805.3,1805.0,5.54014216]
[1745694987690,0.811,1805.3,1805.2,5.5395524]
[1745694987893,5.4053,1805.5,1805.2,5.5395524]
[1745694988097,0.8273,1805.7,1805.3,0.7624541]
[1745694988258,0.9273,1805.9,1805.6,5.53832521]
[1745694988462,0.9273,1805.9,1805.7,5.53788666]
[1745694989076,0.9273,1805.9,1805.7,5.53781417]
[1745694989471,0.9273,1805.9,1805.8,0.24572517]
[1745694989762,0.9273,1805.9,1805.6,5.53815032]
[1745694989964,0.9273,1805.9,1805.7,0.24572517]
[1745694992089,0.9273,1805.9,1805.5,5.53844301]
[1745694992290,0.9273,1805.9,1805.8,0.24572517]
[1745694992492,0.9273,1805.9,1805.5,5.53839866]
[1745694992680,6.46473575,1805.9,1805.8,0.24572517]
[1745694992880,6.46473575,1805.9,1805.4,14.07742333]
[1745694993098,12.00239672,1805.9,1805.4,8.53870061]
[1745694993272,7.66497542,1805.9,1805.5,0.24572517]
[1745694993474,7.66497542,1805.9,1805.5,5.78435601]
[1745694993783,2.12753967,1805.9,1805.5,0.24572517]
[1745694993978,0.9273,1805.9,1805.6,5.53831522]
[1745694994304,6.46476444,1805.9,1805.5,5.53857597]
[1745694994509,6.46476444,1805.9,1805.7,0.24572517]
[1745694994674,6.46476444,1805.9,1805.5,5.53857597]
[1745694994874,0.9273,1805.9,1805.8,0.24572517]
[1745694995075,0.9273,1805.9,1805.6,5.53828156]
[1745694995287,0.9273,1805.9,1805.8,0.24572517]
[1745694995809,1.57375908,1805.9,1805.5,5.53845007]
[1745694995978,7.11119626,1805.9,1805.6,0.24572517]
[1745694996709,5.53790758,1805.8,1805.4,5.53880841]
[1745694996910,5.53790758,1805.8,1805.7,0.24572517]
[1745694997074,5.53790758,1805.8,1805.4,5.53880841]
[1745694997276,5.53790758,1805.8,1805.7,0.24572517]
[1745694997596,0.7527,1805.7,1805.3,5.53906295]
[1745694997903,6.29075,1805.7,1805.3,5.53906295]
[1745694999083,0.8247,1805.5,1805.1,5.53966396]
[1745694999283,6.36336877,1805.5,1805.1,5.53966396]
[1745695000207,0.8247,1805.5,1805.1,11.0792865]
[1745695001007,0.8247,1805.5,1805.2,5.53953286]
[1745695002211,0.8247,1805.5,1805.1,5.53962254]
[1745695002511,0.8247,1805.5,1805.1,11.07925445]
[1745695002708,0.8247,1805.5,1805.2,5.53952617]
[1745695004518,0.8247,1805.5,1805.3,0.24544278]
[1745695006395,6.36334746,1805.5,1805.3,0.24544278]
[1745695006609,0.8247,1805.5,1805.2,5.53951981]
[1745695006791,0.8247,1805.5,1805.3,0.24544278]
[1745695007486,1.34082174,1805.5,1805.3,0.24544278]
[1745695010318,0.8247,1805.5,1805.3,0.24544278]
[1745695014227,6.36334677,1805.5,1805.3,0.24544278]
[1745695014630,0.8247,1805.5,1805.1,5.53961879]
[1745695014830,0.8247,1805.5,1805.2,5.78638317]
[1745695016102,0.8247,1805.5,1805.2,5.78620311]
[1745695016833,0.8247,1805.5,1805.3,5.53913775]
[1745695017039,0.82645813,1805.6,1805.3,5.53913775]
[1745695017210,0.51653665,1805.6,1805.4,0.24808267]
[1745695017408,0.51653665,1805.6,1805.3,5.53913775]
[1745695017607,0.51653665,1805.6,1805.4,0.24808267]
[1745695017812,0.51653665,1805.6,1805.3,5.53913775]
[1745695018130,0.51653665,1805.6,1805.4,0.24808267]
[1745695018295,1.66387708,1805.6,1805.4,0.24808267]
[1745695018495,1.66387708,1805.6,1805.3,5.53913775]
[1745695018694,1.66387708,1805.6,1805.5,0.24808267]
[1745695018892,1.66387708,1805.6,1805.2,6.34206946]
[1745695019092,7.20237803,1805.6,1805.5,0.24808267]
[1745695019327,6.68584138,1805.6,1805.2,6.34206946]
[1745695019522,6.99587771,1805.6,1805.5,0.24752097]
[1745695019723,6.99587771,1805.6,1805.2,6.34206946]
[1745695019901,6.99587771,1805.6,1805.5,0.24752097]
[1745695020101,6.99587771,1805.6,1805.2,6.34206946]
[1745695020429,6.68584138,1805.6,1805.2,0.8027]
[1745695020632,6.68584145,1805.6,1805.3,0.24763332]
[1745695020942,0.66858414,1805.5,1805.3,0.24763332]
[1745695021239,0.51683437,1805.5,1805.3,0.24763332]
[1745695022239,6.68571053,1805.6,1805.3,0.24763332]
[1745695023737,0.82736387,1805.5,1805.3,0.24763332]
[1745695024437,0.31025979,1805.5,1805.3,0.24763332]
[1745695024918,6.68571053,1805.6,1805.3,0.24763332]
[1745695025216,0.66857105,1805.5,1805.3,0.24763332]
[1745695025941,6.68571053,1805.6,1805.3,0.24763332]
[1745695027339,1.14734043,1805.6,1805.3,0.24763332]
[1745695027649,5.54001732,1805.1,1804.7,6.33903665]
[1745695027841,0.7559,1805.0,1804.8,0.24763332]
[1745695028250,0.7559,1805.1,1804.8,5.78829037]
[1745695028629,0.7559,1805.1,1804.8,0.24763332]
[1745695029652,0.51768877,1805.0,1804.8,5.78836249]
[1745695030455,0.51768877,1805.0,1804.8,11.32898181]
[1745695030636,0.51768877,1805.0,1804.9,5.54047315]
[1745695030829,0.7559,1805.2,1804.9,5.54047315]
[1745695031029,0.7559,1805.2,1805.0,0.24763332]
[1745695032639,0.7559,1805.2,1804.8,5.54061214]
[1745695032640,6.29546735,1805.2,1804.8,5.54061214]
[1745695032947,6.29546735,1805.2,1804.9,0.2499369]
[1745695033154,7.93945165,1805.2,1804.9,0.2499369]
[1745695033854,2.3998843,1805.2,1804.9,0.2499369]
[1745695034220,0.7559,1805.2,1804.9,5.7902824]
[1745695034579,0.7559,1805.2,1804.9,5.79028793]
[1745695034743,4.605,1805.3,1805.1,5.53982227]
[1745695035249,4.605,1805.3,1805.2,0.251791]
[1745695035456,4.605,1805.3,1805.1,5.53982227]
[1745695035656,5.12166059,1805.3,1805.2,0.251791]
[1745695036050,5.12166059,1805.3,1805.1,5.53982227]
[1745695036255,5.12166059,1805.3,1805.2,6.34532563]
[1745695036256,0.51666059,1805.3,1805.2,6.34532563]
[1745695036548,0.51666059,1805.3,1805.2,7.89977973]
[1745695036928,4.605,1805.7,1805.5,5.53842636]
[1745695037128,4.605,1805.7,1805.5,5.53840108]
[1745695037335,4.605,1805.7,1805.6,0.25134146]
[1745695039156,4.605,1805.7,1805.6,5.78966667]
[1745695039315,0.1,1805.9,1805.6,5.78966667]
[1745695039521,0.4099165,1805.9,1805.6,5.78966667]
[1745695041023,0.4099165,1805.9,1805.6,5.78945098]
[1745695041363,0.40982171,1805.9,1805.6,5.78945098]
[1745695042962,0.40982171,1805.9,1805.6,0.25134146]
[1745695043460,0.40982171,1805.9,1805.6,5.7895443]
[1745695043760,0.1,1805.9,1805.6,5.7895443]
[1745695043956,0.1,1805.9,1805.6,7.00230061]
[1745695044122,0.1,1805.9,1805.7,5.5379356]
[1745695044519,0.1,1805.9,1805.8,0.24752137]
[1745695046658,0.1,1805.9,1805.6,6.75088411]
[1745695046963,0.1,1805.9,1805.7,0.24752137]
[1745695047992,0.1,1805.9,1805.7,5.7855175]
[1745695048357,0.1,1805.9,1805.7,0.24752137]
[1745695050791,0.1,1805.9,1805.7,6.48524043]
[1745695050997,0.1,1805.9,1805.8,6.32421181]
[1745695051290,0.1,1805.9,1805.8,1.03093186]
[1745695053186,0.1,1805.9,1805.8,6.56864367]
[1745695056796,0.1,1805.9,1805.8,1.03093186]
[1745695057401,0.1,1805.9,1805.8,6.56864367]
[1745695059328,0.1,1805.9,1805.8,5.78214367]
[1745695060809,0.1,1805.9,1805.8,0.24443186]
[1745695061012,0.1,1805.9,1805.8,5.78214367]
[1745695066904,0.1,1805.9,1805.8,0.24443186]
[1745695067642,0.1,1805.9,1805.8,5.78214367]
[1745695067937,0.8805,1805.9,1805.8,0.24443186]
[1745695068252,1.42905,1805.9,1805.8,0.24443186]
[1745695068607,1.42905,1805.9,1805.6,5.53817244]
[1745695068814,1.19082638,1805.9,1805.7,0.24246663]
[1745695069421,12.26597167,1805.9,1805.7,0.24246663]
[1745695069615,6.41795489,1805.9,1805.5,5.53861972]
[1745695070120,6.41795489,1805.9,1805.6,0.24297197]
[1745695070330,5.53779845,1805.8,1805.6,0.24297197]
[1745695070501,6.73337378,1805.8,1805.6,0.24297197]
[1745695070707,6.73337378,1805.8,1805.4,5.5388276]
[1745695070907,6.73337378,1805.8,1805.7,0.24319657]
[1745695071102,6.73337378,1805.8,1805.4,5.5388276]
[1745695071330,6.73337378,1805.8,1805.7,0.24319657]
[1745695071537,7.04370374,1805.8,1805.7,0.24319657]
[1745695071737,7.04370374,1805.8,1805.4,5.5388276]
[1745695071926,7.04370374,1805.8,1805.7,0.24342119]
[1745695072124,7.04370374,1805.8,1805.4,5.5388276]
[1745695072330,7.04370374,1805.8,1805.7,0.24342119]
[1745695072531,7.04370374,1805.8,1805.4,5.5388276]
[1745695072731,7.04370374,1805.8,1805.7,0.24342119]
[1745695072934,7.04370374,1805.8,1805.4,5.5388276]
[1745695073125,7.04370374,1805.8,1805.7,0.24342119]
[1745695073325,7.04370374,1805.8,1805.4,5.5388276]
[1745695073525,7.04370374,1805.8,1805.7,0.24342119]
[1745695073744,6.73337378,1805.8,1805.4,5.5388276]
[1745695074439,6.73337378,1805.8,1805.5,0.24342119]
[1745695075144,1.19557533,1805.8,1805.5,0.24342119]
[1745695076245,11.95579461,1805.9,1805.5,0.24342119]
[1745695076562,0.31028744,1805.8,1805.5,0.24342119]
[1745695080792,5.84804676,1805.8,1805.5,0.24342119]
[1745695081009,0.31028744,1805.8,1805.5,5.78186676]
[1745695081605,0.31028744,1805.8,1805.5,0.24342119]
[1745695082306,5.84804209,1805.8,1805.5,0.24342119]
[1745695082805,5.53775465,1805.8,1805.5,0.24342119]
[1745695087284,6.17958011,1805.8,1805.5,0.24342119]
[1745695087488,0.8209,1805.6,1805.3,11.87522593]
[1745695087688,0.8209,1805.6,1805.4,0.24549895]
[1745695088010,0.8209,1805.6,1805.3,5.53901863]
[1745695088197,0.8209,1805.6,1805.5,0.24549895]
[1745695088396,6.35936254,1805.6,1805.2,6.29243054]
[1745695088603,6.99525612,1805.6,1805.5,0.24549895]
[1745695088806,6.99525612,1805.6,1805.1,6.29266997]
[1745695089109,5.53863973,1805.5,1805.1,5.53966997]
[1745695089314,5.53863973,1805.5,1805.2,0.24549895]
[1745695089611,5.53863973,1805.5,1805.1,5.53966997]
[1745695089812,5.53863973,1805.5,1805.3,0.24549895]
[1745695090009,5.53863973,1805.5,1805.0,0.7536]
[1745695090010,6.30471621,1805.4,1805.0,0.7536]
[1745695090213,5.53926043,1805.3,1804.8,6.2941252]
[1745695090408,5.53926043,1805.3,1804.9,5.54043903]
[1745695090914,5.53926043,1805.3,1804.8,9.29420418]
[1745695091113,5.53926043,1805.3,1804.8,10.77771714]
[1745695091714,0.7657,1805.4,1804.8,10.77771714]
[1745695092012,5.53943093,1805.3,1804.9,5.54044865]
[1745695093015,0.7657,1805.4,1805.0,5.5401661]
[1745695093213,0.7657,1805.4,1805.2,5.53949286]
[1745695093380,10.75340871,1805.6,1805.2,5.53949286]
[1745695093381,10.88321513,1805.6,1805.2,5.53949286]
[1745695093584,12.52535402,1805.6,1805.2,5.53949286]
[1745695094524,12.52535402,1805.6,1805.3,0.24836403]
[1745695098203,0.30995864,1805.5,1805.3,0.24836403]
[1745695098406,5.84860019,1805.5,1805.3,0.24836403]
[1745695098838,5.84860019,1805.5,1805.1,6.2932834]
[1745695099138,5.53864155,1805.5,1805.4,0.24785831]
[1745695099345,6.79118959,1805.5,1805.4,0.24785831]
[1745695099952,6.79118959,1805.5,1805.1,6.2932834]
[1745695100120,5.53864155,1805.5,1805.1,6.2932834]
[1745695101053,10.88320196,1805.6,1805.1,6.2932834]
[1745695101513,10.88320196,1805.6,1805.2,5.53942853]
[1745695102650,4.579,1805.6,1805.1,0.7536]
[1745695102946,4.579,1805.6,1805.5,5.53863195]
[1745695103125,0.30997213,1805.7,1805.6,5.53832521]
[1745695103948,4.98997213,1805.9,1805.6,5.53832521]
[1745695104318,4.98997213,1805.9,1805.5,6.36260951]
[1745695104648,10.52748507,1805.9,1805.5,6.36260951]
[1745695106343,10.52748507,1805.9,1805.4,5.53877568]
[1745695106344,6.34211181,1805.8,1805.4,5.53877568]
[1745695107748,0.8044,1805.8,1805.5,5.53861849]
[1745695108049,5.4844,1805.9,1805.5,5.53840742]
[1745695109354,11.02181999,1805.9,1805.6,0.2480266]
[1745695112453,5.4844,1805.9,1805.6,6.57457245]
[1745695112663,4.68,1805.9,1805.7,5.53794947]
[1745695112828,4.68,1805.9,1805.8,0.55379495]
[1745695113028,4.68,1805.9,1805.8,0.8003048]
[1745695113228,4.68,1805.9,1805.8,6.33801661]
[1745695113765,0.1,1805.9,1805.8,6.33801661]
[1745695113937,0.1,1805.9,1805.8,0.8003048]
[1745695114126,0.1,1805.9,1805.8,0.24650985]
[1745695115177,0.1,1805.9,1805.8,5.78422166]
[1745695119438,0.1,1805.9,1805.8,6.57262166]
[1745695130975,0.1,1805.9,1805.8,5.78422166]
[1745695131271,0.1,1805.9,1805.8,0.24650985]
[1745695131661,0.1,1805.9,1805.8,5.78422166]
[1745695131838,0.1,1805.9,1805.8,5.53771181]
[1745695132041,0.1,1805.9,1805.8,5.78146987]
[1745695132646,0.1,1805.9,1805.8,0.24375806]
[1745695133986,0.1,1805.9,1805.8,5.78146987]
[1745695134177,0.1,1805.9,1805.8,6.91339459]
[1745695136793,0.1,1805.9,1805.8,1.37568278]
[1745695137158,0.1,1805.9,1805.8,6.91339459]
[1745695138587,0.1,1805.9,1805.8,0.24375806]
[1745695138785,0.1,1805.9,1805.8,5.78146987]
[1745695155801,0.1,1805.9,1805.8,0.24375806]
[1745695158805,0.1,1805.9,1805.8,5.78146987]
[1745695161737,0.1,1805.9,1805.8,0.24375806]
[1745695162640,0.1,1805.9,1805.8,5.78146987]
[1745695163845,0.1,1805.9,1805.8,6.99528958]
[1745695164905,0.1,1805.9,1805.8,7.86956228]
[1745695165132,0.1,1805.9,1805.8,12.8692989]
[1745695165317,0.1,1805.9,1805.8,12.8139262]
[1745695167749,0.1,1805.9,1805.8,13.2318557]
[1745695180175,5.3575,1806.5,1806.4,5.53587245]
[1745695180383,0.7847,1806.7,1806.5,5.53533412]
[1745695180543,4.577,1806.8,1806.7,5.53495322]
[1745695180738,0.8847,1806.9,1806.8,5.53464688]
[1745695181067,0.8847,1806.9,1806.8,0.23803215]
[1745695184456,0.8847,1806.9,1806.7,5.53494496]
[1745695184658,0.8847,1806.9,1806.8,0.23651709]
[1745695187590,0.1,1806.9,1806.8,5.77116397]
[1745695189947,0.1,1806.9,1806.8,0.23651709]
[1745695199907,11.99358106,1806.9,1806.3,3.8028]
[1745695200063,6.45894058,1806.9,1806.8,0.23152421]
[1745695200264,7.65824926,1806.9,1806.4,5.53574923]
[1745695200498,7.65824926,1806.9,1806.8,0.23152421]
[1745695200696,6.45894058,1806.9,1806.4,5.53574923]
[1745695200899,6.45894058,1806.9,1806.8,0.23141205]
[1745695201209,6.45894058,1806.9,1806.4,5.53574923]
[1745695201505,6.45894058,1806.9,1806.5,0.23141205]
[1745695202434,5.53466161,1806.8,1806.5,0.23141205]
[1745695202615,6.45906504,1806.9,1806.5,5.76684728]
[1745695203811,6.45906504,1806.9,1806.5,5.76681798]
[1745695204116,0.9246,1806.9,1806.5,5.76681798]
[1745695205318,1.57047888,1806.9,1806.5,0.23141205]
[1745695205523,6.30516232,1806.8,1806.5,0.23141205]
[1745695207828,6.30516232,1806.8,1806.3,11.87496055]
[1745695207829,6.30516232,1806.8,1806.3,6.33878287]
[1745695208026,6.30516232,1806.8,1806.4,0.23264603]
[1745695209155,6.30516232,1806.8,1806.4,5.76848902]
[1745695209747,0.30985842,1806.7,1806.4,5.76848902]
[1745695210550,6.30516232,1806.8,1806.4,5.76848902]
[1745695211721,6.30516232,1806.8,1806.5,5.5355438]
[1745695211722,0.7704,1806.8,1806.5,5.5355438]
[1745695211947,0.7704,1806.8,1806.4,5.76848902]
[1745695212154,6.30506011,1806.8,1806.6,0.23309482]
[1745695212478,7.64391059,1806.8,1806.7,0.23309482]
[1745695212947,7.64391059,1806.8,1806.4,5.53584299]
[1745695213126,6.30506011,1806.8,1806.7,0.23309482]
[1745695213326,6.30506011,1806.8,1806.4,5.53584299]
[1745695213851,6.30506011,1806.8,1806.5,0.23309482]
[1745695217074,10.88006011,1806.8,1806.5,0.23309482]
[1745695220171,5.3454,1806.8,1806.5,0.23309482]
[1745695220373,5.3454,1806.8,1806.6,5.53504363]